bitfinex/quotes_SOLUSD_20240905
["timestamp","ask_amount","ask_price","bid_price","bid_amount"]
[1725567322929,27.7533,128.98,128.93,52.7556]
[1725567323320,7.7539,128.97,128.94,1.55077206]
[1725567323533,20.0,128.96,128.93,45.0]
[1725567323738,20.0,128.96,128.93,52.7561]
[1725567324247,20.0,128.97,128.93,52.7561]
[1725567324542,20.0,128.97,128.94,1.55076408]
[1725567324749,20.0,128.97,128.94,7.7555]
[1725567324945,20.0,128.98,128.95,45.0]
[1725567325244,7.7538,128.97,128.95,45.0]
[1725567325443,7.7538,128.97,128.94,45.0]
[1725567325748,7.7538,128.97,128.94,46.55077262]
[1725567326142,1.65813917,129.01,128.95,1.55077023]
[1725567326343,1.65813917,129.01,128.95,15.5386]
[1725567326527,7.7526,128.99,128.96,45.0]
[1725567327732,1.65813917,129.01,128.95,15.5386]
[1725567327733,27.7535,128.98,128.95,15.5386]
[1725567328347,20.0,128.98,128.96,45.0]
[1725567328647,20.0,128.98,128.96,46.5506293]
[1725567328825,9.40983917,129.01,128.97,1.55050028]
[1725567329031,26.6581,129.05,128.96,51.2351]
[1725567329032,29.41023917,129.0,128.96,51.2351]
[1725567329229,7.7548,128.96,128.92,41.1643]
[1725567329419,1.65813917,128.95,128.89,34.9336]
[1725567329741,6.5406,128.99,128.81,443.71746816]
[1725567329742,19.391,128.93,128.86,15.5386]
[1725567329915,7.7596,128.88,128.84,6.2351]
[1725567330116,7.7598,128.87,128.84,6.2351]
[1725567330315,1.65813917,128.86,128.82,15.5386]
[1725567330548,6.637,128.89,128.73,329.6957]
[1725567330718,6.637,128.89,128.77,50.0]
[1725567330719,1.65813917,128.88,128.77,50.0]
[1725567330922,1.65813917,128.88,128.78,9.31708172]
[1725567330923,7.7614,128.85,128.78,9.31708172]
[1725567331120,6.637,128.89,128.78,19.4117]
[1725567331121,21.65813917,128.84,128.78,19.4117]
[1725567331321,7.7627,128.82,128.76,7.7663]
[1725567331641,20.0,128.81,128.76,7.7663]
[1725567331844,20.0,128.81,128.77,7.7656]
[1725567332341,1.65813917,128.87,128.79,50.0]
[1725567332855,7.7597,128.88,128.82,7.7627]
[1725567333215,1.65813917,128.87,128.82,7.7627]
[1725567333562,9.41793917,128.87,128.83,45.0]
[1725567333721,1.65813917,128.86,128.83,45.0]
[1725567333922,1.65813917,128.9,128.83,45.0]
[1725567334115,7.7604,128.86,128.83,45.0]
[1725567334716,7.7604,128.86,128.8,7.7639]
[1725567334935,7.7599,128.87,128.82,7.7627]
[1725567335253,20.0,128.86,128.83,45.52943361]
[1725567335647,20.0,128.86,128.84,0.52939251]
[1725567335950,20.0,128.86,128.83,45.0]
[1725567336249,27.7597,128.87,128.83,45.0]
[1725567336462,20.0,128.87,128.82,45.0]
[1725567336746,21.65813917,128.87,128.82,45.0]
[1725567336954,7.7611,128.85,128.8,7.7638]
[1725567337151,7.7604,128.86,128.81,1.55243839]
[1725567338035,7.7635,128.81,128.75,19.4167]
[1725567338235,7.7629,128.82,128.75,69.4167]
[1725567338448,7.7629,128.82,128.75,19.4167]
[1725567338835,9.42163917,128.81,128.76,7.7663]
[1725567339050,7.7635,128.81,128.76,7.7663]
[1725567339654,7.7627,128.82,128.77,9.31848346]
[1725567340234,7.7627,128.82,128.78,45.0]
[1725567340436,7.7638,128.81,128.78,45.0]
[1725567340735,7.7629,128.82,128.78,45.0]
[1725567342432,3.0097525,128.85,128.79,1.55267639]
[1725567342628,9.11311333,128.85,128.8,7.7638]
[1725567342846,1.35161333,128.85,128.81,45.0]
[1725567343151,1.35161333,128.85,128.82,7.7625]
[1725567343347,1.35161333,128.85,128.83,45.0]
[1725567343840,1.35161333,128.85,128.82,45.0]
[1725567344024,10.7707525,128.85,128.81,25.5557]
[1725567344227,1.35161333,128.85,128.82,45.0]
[1725567344643,9.11261333,128.85,128.82,45.0]
[1725567345241,1.65813917,128.84,128.79,7.7644]
[1725567345458,27.7617,128.84,128.79,7.7644]
[1725567345632,27.7617,128.84,128.8,45.0]
[1725567345827,1.65813917,128.83,128.79,7.7644]
[1725567346037,7.7634,128.81,128.75,58.2487]
[1725567346242,29.42253917,128.8,128.75,27.183]
[1725567346483,1.65813917,128.79,128.75,27.183]
[1725567346959,9.42263917,128.79,128.75,19.4165]
[1725567347135,7.7651,128.78,128.75,19.4165]
[1725567347329,20.0,128.8,128.75,27.1833]
[1725567347547,21.65813917,128.82,128.75,27.1833]
[1725567347937,7.7639,128.8,128.75,27.1833]
[1725567348253,20.0,128.79,128.75,27.1833]
[1725567348549,21.65813917,128.79,128.75,27.1833]
[1725567349340,7.7662,128.77,128.73,15.2127]
[1725567349535,9.42433917,128.77,128.73,15.2127]
[1725567349767,21.65813917,128.79,128.74,1.55331551]
[1725567349926,1.65813917,128.79,128.74,1.55331551]
[1725567350337,1.65813917,128.83,128.76,7.7661]
[1725567350535,7.7638,128.81,128.76,7.7661]
[1725567350736,7.7638,128.81,128.77,45.0]
[1725567350958,7.764,128.8,128.77,45.0]
[1725567351151,7.7635,128.81,128.77,45.0]
[1725567351433,9.42223917,128.8,128.76,7.7659]
[1725567351638,9.42223917,128.8,128.74,19.4179]
[1725567351639,7.7645,128.79,128.75,7.7667]
[1725567351939,7.7645,128.79,128.76,45.0]
[1725567352560,7.7641,128.8,128.76,52.7663]
[1725567353270,1.65813917,128.83,128.77,7.7656]
[1725567353463,7.7629,128.82,128.78,52.7651]
[1725567353666,20.0,128.81,128.77,7.7655]
[1725567353984,20.0,128.81,128.78,45.0]
[1725567354370,27.7635,128.81,128.78,45.0]
[1725567355250,7.764,128.8,128.76,33.6404]
[1725567355560,7.764,128.8,128.77,45.0]
[1725567355561,9.42213917,128.8,128.77,45.0]
[1725567355764,7.764,128.8,128.77,46.55297809]
[1725567356140,1.65813917,128.83,128.8,7.7637]
[1725567356342,7.7617,128.84,128.81,46.55250042]
[1725567356569,1.35161333,128.85,128.81,46.55250042]
[1725567356856,1.35161333,128.85,128.84,7.7615]
[1725567357257,1.35161333,128.85,128.84,52.7615]
[1725567357469,1.35161333,128.85,128.84,60.42565587]
[1725567357637,7.758,128.9,128.85,7.7606]
[1725567357844,7.758,128.9,128.86,45.0]
[1725567357845,1.35111801,128.87,128.86,45.0]
[1725567358237,7.7586,128.89,128.86,45.0]
[1725567358449,1.35118906,128.87,128.86,45.0]
[1725567358965,1.35118906,128.87,128.86,54.31205461]
[1725567359171,1.35118906,128.87,128.86,52.7603]
[1725567360364,1.35118906,128.87,128.86,45.0]
[1725567360567,1.35118906,128.87,128.86,54.31205461]
[1725567360739,7.7562,128.93,128.86,65.95205461]
[1725567360942,1.65813917,128.95,128.86,65.95205461]
[1725567360943,1.35072775,128.89,128.88,23.0177]
[1725567361137,13.8526,129.0,128.88,16.80982145]
[1725567361138,9.41253917,128.96,128.88,16.80982145]
[1725567361358,7.755,128.95,128.91,7.7572]
[1725567361570,1.35062676,128.93,128.92,45.0]
[1725567361863,1.65813917,128.98,128.92,52.7567]
[1725567362050,1.35045351,128.93,128.92,52.7567]
[1725567362250,9.41263917,128.96,128.92,45.0]
[1725567362555,1.35048502,128.93,128.92,52.7566]
[1725567362759,7.7545,128.96,128.92,52.7566]
[1725567362937,1.35044421,128.93,128.92,52.7566]
[1725567363136,7.7545,128.96,128.92,52.7566]
[1725567363446,1.35075914,128.93,128.92,45.0]
[1725567363744,7.7549,128.95,128.92,45.0]
[1725567363946,1.35075076,128.93,128.92,45.0]
[1725567364253,1.35075076,128.93,128.88,15.2586]
[1725567364581,7.7594,128.88,128.84,41.2867]
[1725567364740,7.7596,128.88,128.84,21.8838]
[1725567364935,7.7596,128.88,128.84,29.6452]
[1725567365360,7.7587,128.89,128.84,29.6452]
[1725567365741,7.7587,128.89,128.85,45.0]
[1725567365951,1.65813917,128.91,128.86,1.55183522]
[1725567366149,1.35075076,128.93,128.87,7.7596]
[1725567366447,7.7574,128.91,128.88,45.0]
[1725567366648,20.0,128.9,128.88,45.0]
[1725567366961,20.0,128.9,128.86,7.7602]
[1725567367273,1.65813917,128.89,128.84,29.6452]
[1725567367449,1.65813917,128.89,128.85,45.0]
[1725567367643,1.65813917,128.91,128.85,45.0]
[1725567367839,7.758,128.9,128.85,45.0]
[1725567368167,7.7586,128.89,128.85,52.7608]
[1725567368870,7.758,128.9,128.85,52.7608]
[1725567369051,20.0,128.92,128.85,45.0]
[1725567369362,7.7571,128.92,128.87,7.7593]
[1725567369538,20.0,128.91,128.88,45.0]
[1725567369740,27.7573,128.91,128.88,45.0]
[1725567369962,20.0,128.91,128.88,52.7588]
[1725567370137,20.0,128.92,128.88,52.7588]
[1725567370340,20.0,128.92,128.89,9.30991193]
[1725567370660,1.65813917,128.96,128.9,46.55128494]
[1725567370853,9.10429939,128.97,128.92,7.7566]
[1725567371049,9.10429939,128.97,128.93,46.55095832]
[1725567371243,9.10429939,128.97,128.93,45.0]
[1725567371449,9.10439939,128.97,128.92,52.7565]
[1725567372161,1.35049939,128.97,128.93,7.756]
[1725567372468,7.7533,128.98,128.94,46.55077008]
[1725567373072,1.3503132,129.0,128.95,1.55076984]
[1725567373259,1.3503132,129.0,128.96,1.5503498]
[1725567373770,1.3503132,129.0,128.94,45.0]
[1725567374249,9.1024132,129.0,128.96,7.7541]
[1725567374451,9.1024132,129.0,128.97,45.0]
[1725567375052,7.7526,128.99,128.97,45.0]
[1725567375255,1.65813917,128.98,128.92,19.3909]
[1725567375447,23.00845237,129.0,128.92,19.3909]
[1725567375665,23.00845237,129.0,128.93,50.0]
[1725567375972,29.1023132,129.0,128.95,7.7544]
[1725567376351,29.1023132,129.0,128.96,7.7541]
[1725567376571,1.3503132,129.0,128.98,7.7529]
[1725567376749,1.65813917,129.05,128.99,46.55012047]
[1725567376946,7.7503,129.03,128.99,54.30262047]
[1725567377869,20.0,129.02,128.99,54.30262047]
[1725567378055,27.7508,129.02,128.99,45.0]
[1725567378258,20.0,129.02,128.95,19.3862]
[1725567378470,9.40963917,129.01,128.96,7.7538]
[1725567378771,20.0,129.0,128.96,7.7538]
[1725567379073,7.7526,128.99,128.95,27.1411]
[1725567379285,7.7532,128.98,128.92,58.1723]
[1725567379459,7.7538,128.97,128.92,58.1723]
[1725567379856,21.03993917,128.99,128.92,19.3907]
[1725567380164,7.755,128.95,128.92,19.3907]
[1725567381361,7.7545,128.96,128.92,27.1474]
[1725567381564,20.0,128.95,128.92,27.1474]
[1725567381981,1.65813917,129.01,128.93,1.55092514]
[1725567382182,7.7526,128.99,128.95,7.7548]
[1725567382371,7.7526,128.99,128.94,19.3885]
[1725567382372,7.7521,129.0,128.96,9.19787335]
[1725567382572,7.7521,129.0,128.96,1.44377335]
[1725567382888,7.7514,129.01,128.96,9.19767335]
[1725567383062,7.7509,129.02,128.97,52.7537]
[1725567383384,7.7514,129.01,128.97,52.7537]
[1725567384499,7.7521,129.0,128.97,45.0]
[1725567384982,7.7531,128.98,128.97,45.0]
[1725567385162,9.10289873,128.99,128.97,45.0]
[1725567386166,7.7531,128.98,128.93,19.389]
[1725567386364,7.7531,128.98,128.94,52.7551]
[1725567386882,1.35019873,128.99,128.91,21.6626]
[1725567386883,21.65813917,128.97,128.91,21.6626]
[1725567387083,21.65813917,128.97,128.87,40.5786]
[1725567387475,7.7577,128.91,128.87,40.5786]
[1725567388289,7.7577,128.91,128.86,7.7601]
[1725567388290,1.65813917,128.95,128.83,21.1805]
[1725567388478,7.7587,128.89,128.84,27.1641]
[1725567388789,20.0,128.88,128.84,27.1641]
[1725567389283,27.7593,128.88,128.84,27.1641]
[1725567389592,20.0,128.88,128.84,19.4028]
[1725567389759,7.7593,128.88,128.84,19.4028]
[1725567390562,20.0,128.87,128.84,19.4028]
[1725567391694,20.0,128.87,128.85,45.0]
[1725567392785,7.7615,128.84,128.8,6.6321]
[1725567392997,7.7633,128.82,128.78,19.4122]
[1725567393170,7.7629,128.82,128.78,19.4122]
[1725567393372,7.7623,128.83,128.78,27.1768]
[1725567393567,20.0,128.82,128.78,27.1768]
[1725567394371,29.42093917,128.82,128.78,27.1768]
[1725567394578,27.7628,128.82,128.78,27.1768]
[1725567395063,20.0,128.82,128.78,27.1768]
[1725567395705,1.65813917,128.85,128.8,19.4094]
[1725567395888,7.7603,128.86,128.81,9.3149503]
[1725567396283,9.41953917,128.85,128.82,45.0]
[1725567396483,7.7614,128.85,128.81,45.0]
[1725567396691,7.7614,128.85,128.82,1.55235453]
[1725567397682,7.7616,128.84,128.81,45.0]
[1725567399303,7.7619,128.84,128.8,7.7639]
[1725567399506,7.7619,128.84,128.81,1.55240358]
[1725567400082,7.7619,128.84,128.8,7.7639]
[1725567400802,7.7619,128.84,128.81,45.0]
[1725567401989,7.7623,128.83,128.79,27.1751]
[1725567402192,7.7623,128.83,128.79,19.4108]
[1725567402995,7.7623,128.83,128.79,27.1752]
[1725567405409,1.35187783,128.82,128.79,27.1752]
[1725567407190,10.772917,128.82,128.79,19.4108]
[1725567407702,1.35187783,128.82,128.79,28.72791194]
[1725567407911,1.35187783,128.82,128.8,1.55260267]
[1725567408108,1.35187783,128.82,128.81,27.1717]
[1725567408288,1.35187783,128.82,128.81,72.1717]
[1725567408483,7.7613,128.85,128.81,72.1717]
[1725567408689,20.0,128.84,128.82,1.55232887]
[1725567408907,20.0,128.84,128.81,72.1717]
[1725567409095,21.35155666,128.84,128.81,72.1717]
[1725567409698,21.35155666,128.84,128.82,45.0]
[1725567410908,1.65813917,128.83,128.78,19.4114]
[1725567411095,1.35155666,128.84,128.79,45.0]
[1725567411601,1.35155666,128.84,128.8,19.4097]
[1725567411905,9.11345666,128.84,128.8,27.1733]
[1725567412915,9.42033917,128.83,128.8,19.4097]
[1725567413413,9.11345666,128.84,128.8,27.1734]
[1725567413913,1.35155666,128.84,128.81,1.55247018]
[1725567414097,1.35155666,128.84,128.8,19.4097]
[1725567414296,1.35155666,128.84,128.77,19.4132]
[1725567414493,7.7631,128.82,128.78,7.7649]
[1725567416013,7.7631,128.82,128.77,19.4132]
[1725567416014,7.7635,128.81,128.77,27.1788]
[1725567416291,7.7628,128.82,128.78,52.765]
[1725567416998,7.7628,128.82,128.79,7.7645]
[1725567417199,7.7623,128.83,128.79,7.7645]
[1725567417402,20.0,128.85,128.81,7.7633]
[1725567417403,29.41943917,128.85,128.81,7.7633]
[1725567417601,7.761,128.85,128.82,64.4068]
[1725567418814,20.0,128.84,128.82,64.4068]
[1725567419012,27.7616,128.84,128.8,7.7637]
[1725567420012,27.7616,128.84,128.81,45.0]
[1725567420194,27.7616,128.84,128.81,46.55244385]
[1725567420509,20.0,128.84,128.81,54.31564385]
[1725567420718,20.0,128.84,128.82,7.7627]
[1725567420890,21.05743917,128.88,128.85,7.7607]
[1725567420891,20.0,128.87,128.85,7.7607]
[1725567421090,1.65813917,128.89,128.85,1.55204542]
[1725567421411,9.41673917,128.89,128.85,52.7607]
[1725567421610,9.41673917,128.89,128.85,45.0]
[1725567422116,1.65813917,128.91,128.86,20.95134197]
[1725567422413,9.41583917,128.91,128.86,19.4005]
[1725567422613,7.7591,128.88,128.83,19.4043]
[1725567422922,1.65813917,128.87,128.81,16.1564]
[1725567423112,7.7614,128.85,128.81,16.1564]
[1725567423294,7.7614,128.85,128.8,27.1726]
[1725567423489,20.0,128.84,128.8,27.1726]
[1725567424096,1.35173193,128.83,128.8,27.1726]
[1725567424511,10.7719711,128.83,128.8,19.4089]
[1725567424821,1.35173193,128.83,128.8,27.1728]
[1725567426435,3.0098711,128.83,128.78,15.5361]
[1725567426599,3.0098711,128.83,128.79,45.0]
[1725567426794,1.35173193,128.83,128.79,45.0]
[1725567427107,1.35173193,128.83,128.75,15.6154]
[1725567427320,1.65813917,128.82,128.76,5.81357166]
[1725567427622,1.65813917,128.82,128.75,15.6154]
[1725567427825,1.65813917,128.82,128.76,5.81357788]
[1725567428004,1.65813917,128.82,128.75,15.6154]
[1725567428205,19.409,128.81,128.74,19.4182]
[1725567428502,1.65813917,128.8,128.75,5.81432208]
[1725567428723,21.65813917,128.8,128.74,19.4182]
[1725567429064,1.65813917,128.79,128.74,19.4182]
[1725567429206,1.65813917,128.79,128.75,5.81453217]
[1725567429401,7.7653,128.78,128.76,5.81469064]
[1725567429628,7.7653,128.78,128.74,27.1854]
[1725567429922,7.7653,128.78,128.75,52.3678169]
[1725567430124,7.7648,128.79,128.76,5.81468696]
[1725567430297,7.7648,128.79,128.75,54.32002994]
[1725567430497,7.7641,128.8,128.76,13.58083484]
[1725567430736,21.65813917,128.81,128.77,58.57989075]
[1725567430737,7.7634,128.81,128.77,58.57989075]
[1725567431019,17.04506452,128.87,128.78,1.55276512]
[1725567431219,1.65813917,128.86,128.8,27.1731]
[1725567432018,1.65813917,128.85,128.78,16.4368]
[1725567432232,1.65813917,128.85,128.77,72.1787]
[1725567432233,1.65813917,128.85,128.77,45.0]
[1725567432939,19.4043,128.84,128.77,45.0]
[1725567433118,21.65813917,128.83,128.77,45.0]
[1725567433323,7.7644,128.8,128.76,20.96867529]
[1725567433528,20.0,128.79,128.76,19.4157]
[1725567433730,20.0,128.79,128.77,45.0]
[1725567434029,19.4043,128.84,128.8,7.7639]
[1725567434030,1.65813917,128.83,128.8,7.7639]
[1725567434331,29.42063917,128.83,128.79,7.7643]
[1725567434510,7.7627,128.82,128.78,27.1774]
[1725567434712,7.7633,128.81,128.78,19.4125]
[1725567435127,9.42223917,128.8,128.77,45.0]
[1725567435440,7.7646,128.79,128.75,27.1827]
[1725567435734,7.7646,128.79,128.76,5.81425417]
[1725567435940,7.7646,128.79,128.75,27.1827]
[1725567436739,1.65813917,128.78,128.73,6.1269]
[1725567436939,35.52143917,128.8,128.74,5.81468828]
[1725567437115,1.65813917,128.79,128.7,6.4387]
[1725567437438,7.768,128.74,128.71,15.54772244]
[1725567437608,7.768,128.74,128.72,5.81571551]
[1725567437807,7.768,128.74,128.71,12.54334144]
[1725567437808,7.768,128.74,128.71,7.7693]
[1725567438009,7.768,128.74,128.72,5.81592941]
[1725567438222,7.768,128.74,128.71,7.7693]
[1725567438437,7.768,128.74,128.72,5.81586255]
[1725567438643,1.65813917,128.76,128.7,16.17105086]
[1725567438823,3.01089615,128.79,128.71,55.8158572]
[1725567439021,7.7661,128.77,128.73,27.1873]
[1725567439215,29.42473917,128.76,128.73,19.4193]
[1725567439411,7.7666,128.76,128.73,19.4193]
[1725567440951,7.7666,128.76,128.72,7.7686]
[1725567441115,7.7661,128.77,128.73,7.7679]
[1725567441316,27.7663,128.76,128.74,45.0]
[1725567441618,9.42543917,128.75,128.72,19.4219]
[1725567441821,7.7673,128.75,128.72,19.4219]
[1725567442033,7.7666,128.76,128.72,27.1906]
[1725567442331,9.42473917,128.76,128.72,27.1906]
[1725567442523,7.767,128.75,128.72,27.1906]
[1725567442725,9.42573917,128.74,128.71,7.7693]
[1725567442947,7.7676,128.74,128.71,7.7693]
[1725567443421,9.42653917,128.73,128.69,39.73868625]
[1725567443621,1.65813917,128.72,128.7,5.81613944]
[1725567443839,1.65813917,128.72,128.69,2.81130439]
[1725567443840,7.769,128.72,128.69,2.81130439]
[1725567444063,1.65813917,128.71,128.69,2.81130439]
[1725567444823,7.769,128.72,128.69,2.81130439]
[1725567445026,7.7682,128.73,128.69,12.1354795]
[1725567445346,29.42693917,128.72,128.69,2.81130439]
[1725567445533,27.7688,128.72,128.69,2.81130439]
[1725567445723,7.7688,128.72,128.69,2.81130439]
[1725567446337,7.7684,128.73,128.69,47.81130439]
[1725567446642,7.7676,128.74,128.7,7.7698]
[1725567446827,20.0,128.73,128.71,52.7693]
[1725567447233,7.7672,128.75,128.71,52.7693]
[1725567447547,3.01071138,128.77,128.72,1.55349386]
[1725567447747,9.11837221,128.77,128.73,27.1883]
[1725567447960,1.35257221,128.77,128.73,27.1883]
[1725567448139,3.01071138,128.77,128.73,27.1883]
[1725567448337,1.35257221,128.77,128.74,7.7674]
[1725567448858,9.42343917,128.78,128.74,7.7674]
[1725567449146,19.4098,128.81,128.75,64.4166]
[1725567449147,1.35233333,128.79,128.75,64.4166]
[1725567449332,1.65813917,128.8,128.75,64.4166]
[1725567450048,7.7641,128.8,128.75,64.4166]
[1725567450246,3.01026139,128.81,128.77,7.7657]
[1725567450659,3.01026139,128.81,128.76,1.55284176]
[1725567450660,10.77376139,128.81,128.76,7.7662]
[1725567450828,7.7656,128.78,128.73,7.7677]
[1725567451024,7.7656,128.78,128.74,7.7674]
[1725567451228,7.7648,128.79,128.75,52.7669]
[1725567451429,3.01026139,128.81,128.75,52.7669]
[1725567451661,7.7641,128.8,128.76,7.7663]
[1725567451959,20.0,128.79,128.76,7.7663]
[1725567452543,20.0,128.79,128.75,52.7668]
[1725567452745,21.65813917,128.79,128.75,52.7668]
[1725567453661,20.0,128.79,128.75,52.7668]
[1725567453959,21.65813917,128.79,128.75,52.7668]
[1725567454142,21.65813917,128.79,128.71,41.9934]
[1725567454347,1.65813917,128.79,128.73,7.768]
[1725567455055,1.65813917,128.78,128.72,7.7686]
[1725567455436,7.7668,128.76,128.72,7.7686]
[1725567455631,7.7659,128.77,128.71,41.9934]
[1725567455858,9.42313917,128.79,128.75,7.7665]
[1725567456068,7.7657,128.78,128.73,27.1878]
[1725567456236,9.42383917,128.78,128.73,27.1878]
[1725567456658,20.0,128.77,128.73,27.1878]
[1725567456833,27.7658,128.77,128.73,27.1878]
[1725567457656,20.0,128.77,128.74,7.7673]
[1725567458545,20.0,128.77,128.75,45.0]
[1725567460943,27.7657,128.77,128.74,7.7673]
[1725567461365,20.0,128.77,128.74,7.7673]
[1725567462362,7.7648,128.79,128.75,54.32014165]
[1725567462563,3.01026139,128.81,128.76,7.7663]
[1725567462564,7.7642,128.8,128.76,7.7663]
[1725567462766,1.35212222,128.81,128.77,46.55276959]
[1725567462969,1.35212222,128.81,128.77,45.0]
[1725567463179,1.65813917,128.84,128.77,45.0]
[1725567463341,1.35204279,128.82,128.77,45.0]
[1725567463542,9.11514279,128.82,128.78,7.7647]
[1725567464050,1.65813917,128.81,128.78,7.7647]
[1725567464566,9.11514279,128.82,128.78,7.7647]
[1725567465152,29.42153917,128.81,128.77,72.1797]
[1725567465658,21.65813917,128.81,128.77,45.0]
[1725567465864,21.65813917,128.81,128.75,19.4173]
[1725567465865,7.7643,128.8,128.76,52.7663]
[1725567466866,30.77328196,128.82,128.76,64.4146]
[1725567467047,29.11514279,128.82,128.77,1.55293095]
[1725567467658,21.35204279,128.82,128.79,7.7645]
[1725567467863,21.35204279,128.82,128.8,9.31647594]
[1725567468144,1.35204279,128.82,128.8,7.7639]
[1725567468950,1.35204279,128.82,128.79,7.7643]
[1725567469152,3.01018196,128.82,128.79,7.7643]
[1725567469459,1.35204279,128.82,128.79,7.7643]
[1725567469762,1.35204279,128.82,128.8,1.5525773]
[1725567469972,21.35204279,128.82,128.8,1.5525773]
[1725567470273,21.35204279,128.82,128.8,46.5525773]
[1725567470972,1.35204279,128.82,128.8,46.5525773]
[1725567471350,21.35204279,128.82,128.8,46.5525773]
[1725567471559,23.01018196,128.82,128.77,15.3179]
[1725567471871,21.35204279,128.82,128.79,7.7644]
[1725567472375,1.35204279,128.82,128.81,7.7633]
[1725567472749,7.7601,128.87,128.82,27.1688]
[1725567472943,7.7601,128.87,128.83,9.31414574]
[1725567473147,7.7603,128.86,128.83,1.55214574]
[1725567474370,7.7599,128.87,128.83,54.31414574]
[1725567474572,7.7593,128.88,128.84,7.7615]
[1725567474758,7.7593,128.88,128.85,1.55194593]
[1725567475543,7.7587,128.89,128.85,9.31284593]
[1725567475746,7.7587,128.89,128.86,1.55183316]
[1725567475947,3.00932509,128.9,128.86,9.31213316]
[1725567475948,9.10928592,128.9,128.86,9.31213316]
[1725567476372,1.35118592,128.9,128.87,7.7597]
[1725567476675,1.35118592,128.9,128.88,1.55166411]
[1725567476972,1.35118592,128.9,128.87,7.7597]
[1725567476973,9.10918592,128.9,128.87,1.55166411]
[1725567477184,9.10918592,128.9,128.87,46.55166411]
[1725567477469,20.0,128.89,128.87,46.55166411]
[1725567477877,21.35118592,128.9,128.87,46.55166411]
[1725567478971,29.10918592,128.9,128.87,46.55166411]
[1725567479153,21.35118592,128.9,128.83,35.676]
[1725567479353,7.7596,128.88,128.84,52.7611]
[1725567480468,9.41793917,128.87,128.84,7.7611]
[1725567480657,7.7598,128.87,128.84,7.7611]
[1725567481973,7.7603,128.86,128.83,35.676]
[1725567482169,7.761,128.85,128.8,25.7439]
[1725567482550,7.7621,128.83,128.79,22.8729]
[1725567482851,1.65813917,128.84,128.79,15.1085]
[1725567483047,21.65813917,128.86,128.79,22.873]
[1725567483252,1.65813917,128.85,128.79,7.7645]
[1725567483467,1.65813917,128.85,128.78,7.7649]
[1725567483468,7.7633,128.81,128.78,7.7649]
[1725567483847,7.7633,128.81,128.77,19.4132]
[1725567483848,7.7633,128.81,128.77,27.1788]
[1725567485061,7.7639,128.8,128.77,27.1788]
[1725567485373,7.7634,128.81,128.77,27.1788]
[1725567486468,7.7634,128.81,128.78,45.0]
[1725567488572,7.7628,128.82,128.78,52.7646]
[1725567488756,20.0,128.81,128.78,52.7646]
[1725567488956,1.65813917,128.84,128.78,52.7646]
[1725567488957,7.7623,128.83,128.79,20.96376096]
[1725567489261,20.0,128.82,128.8,45.0]
[1725567489465,20.0,128.82,128.81,1.55250665]
[1725567490274,1.65813917,128.86,128.81,19.4083]
[1725567490478,14.75618592,128.9,128.83,23.2979]
[1725567490479,9.41753917,128.88,128.83,23.2979]
[1725567490655,7.7594,128.88,128.84,9.31336401]
[1725567492870,20.0,128.87,128.84,9.31336401]
[1725567493564,27.7597,128.87,128.84,9.31336401]
[1725567494593,27.7597,128.87,128.83,42.7037]
[1725567494759,27.7597,128.87,128.84,45.0]
[1725567498479,7.7609,128.85,128.84,45.0]
[1725567498788,7.7605,128.86,128.83,15.5364]
[1725567500684,7.7605,128.86,128.83,23.2985]
[1725567500885,7.7605,128.86,128.84,1.55209379]
[1725567501074,27.7599,128.87,128.84,46.55209379]
[1725567503482,27.7599,128.87,128.84,45.0]
[1725567504277,7.7605,128.86,128.83,34.9416]
[1725567504482,1.65813917,128.85,128.83,15.5364]
[1725567504681,7.7615,128.84,128.8,43.4511]